Cogmind - Beta 13 @@@ ROGUE MODE // 2024.03.31 @ 22:12:07 Player: DoFeek Result: Destroyed by G-34 Mercenary with Small Laser Performance ------------- Evolutions (1) 500 Regions Visited (2) 400 Robots Destroyed (26) 130 Value Destroyed (361) 361 Prototype IDs (0) 0 Alien Tech Used (0) 0 Bonus (0) 0 TOTAL SCORE: 1391 Bonus ------- None Cogmind --------- Core Integrity 0/400 Matter 300/300 Energy 100/100 System Corruption 0% Temperature Cool (6) Movement Core (200) Ox3 Location -9/Materials Parts ------- > --- POWER (1) -------- (None) > --- PROPULSION (3) --- (None) > --- UTILITY (3) ------ Small Storage Unit > --- WEAPON (2) ------- Heavy Flail Great Maul > --- INVENTORY (8) ---- Heavy Flail Heavy Flail Great Maul Great Maul Great Maul Peak State ------------ > --- POWER ------------ Light Ion Engine > --- PROPULSION ------- Light Treads Light Treads Light Treads > --- UTILITY ---------- Small Storage Unit > --- WEAPON ----------- Heavy Flail Heavy Flail > --- INVENTORY -------- Ion Engine Heavy Flail Heavy Flail Great Maul [Rating: 12] Favorites ----------- Power Light Ion Engine Engine Light Ion Engine Propulsion Light Treads Treads Light Treads Utility Small Storage Unit Storage Small Storage Unit Protection Light Armor Plating Weapon EM Pulse Gun Energy Gun EM Pulse Gun Impact Weapon Heavy Flail Build | -11 -10 -9 ------- Run | Yrd Mat Mat Slots Evolved 2 | . . 2 Power . | . . . Propulsion 1 | . . 1 Utility 1 | . . 1 Weapon . | . . . Parts Attached 17 | 6 4 7 Power 2 | 1 . 1 Engine 2 | 1 . 1 Core . | . . . Reactor . | . . . Propulsion 7 | 2 3 2 Treads 7 | 2 3 2 Leg . | . . . Wheel . | . . . Hover . | . . . Flight . | . . . Utility 2 | 1 . 1 Device . | . . . Storage 1 | 1 . . Processor . | . . . Hackware . | . . . Protection 1 | . . 1 Artifact . | . . . Weapon 6 | 2 1 3 Energy Gun 3 | 2 1 . Energy Cannon . | . . . Ballistic Gun . | . . . Ballistic Cannon . | . . . Launcher . | . . . Special Weapon . | . . . Impact Weapon 3 | . . 3 Slashing Weapon . | . . . Piercing Weapon . | . . . Special Melee Weapon . | . . . Unidentified Prototypes . | . . . Parts Lost 8 | . . 8 Power 2 | . . 2 Propulsion 4 | . . 4 Utility 1 | . . 1 Weapon 1 | . . 1 Highest Loss Streak 3 | . . 3 To Critical Strikes . | . . . Average Slot Usage (%) 75 | . 82 67 Engine 12 | . 14 9 Treads 24 | . 25 24 Storage 12 | . 14 11 Energy Gun 15 | . 27 1 Impact Weapon 9 | . . 19 Naked Turns . | . . . Heaviest Build 19 | 12 12 19 Greatest Support 60 | 40 40 60 Greatest Overweight (x) 5 | . . 5 Average Overweight (x) . | . . . Largest Inventory Capacity 8 | 8 8 8 Average Capacity 7 | 7 8 8 Most Carried 7 | 5 7 7 Average Carried 5 | 2 4 6 Final Capacity 8 | 8 8 8 Final Carried 7 | 3 7 5 Class Distribution -------------------- 100% | Mutant Dominant Class ---------------- Mutant | -10/Materials Mutant | -9/Materials Resources | -11 -10 -9 ----------- Run | Yrd Mat Mat Matter Collected 360 | 242 58 60 Remotely . | . . . Salvage Created 586 | . 226 360 Parts 32 | . 21 11 Haulers Intercepted . | . . . Recyclers Shooed . | . . . Parts Field Recycled . | . . . Retrieved Matter . | . . . Parts Self-Destructed . | . . . Prevented . | . . . Kills | -11 -10 -9 ------- Run | Yrd Mat Mat Combat Hostiles Destroyed 20 | . 6 14 Melee 8 | . . 8 Guns 6 | . 6 . Classes Destroyed 7 | . 4 3 Worker 3 | . . 3 Builder 1 | . 1 . Recycler 1 | . . 1 Watcher 1 | . 1 . Swarmer 15 | . 3 12 Grunt 4 | . 3 1 Sentry 1 | . . 1 Best Kill Streak 5 | . 5 5 Combat Bots Only 5 | . 3 5 Max Kills in Single Turn 1 | . 1 1 Gunslinging . | . . . Exploded . | . . . Melee 1 | . . 1 Uniques/NPCs Destroyed . | . . . Combat | -11 -10 -9 -------- Run | Yrd Mat Mat Hostile Shots Fired 197 | . 32 165 Missed 48 | . 14 34 Damage Taken 1414 | . 173 1241 Core 405 | . . 405 Absorbed by Shields . | . . . Core Remaining (%) 100 | 100 100 . Volleys Fired 15 | . 15 . Largest 2 | . 2 . Hottest 80 | . 80 . Shots Fired 29 | . 29 . Gun 29 | . 29 . Cannon . | . . . Launcher . | . . . Special . | . . . Kinetic . | . . . Thermal . | . . . Explosive . | . . . Electromagnetic 29 | . 29 . Robot Hit Streak 6 | . 6 . Robot Miss Streak 2 | . 2 . Penetration Max . | . . . Secondary Targets . | . . . Shots Hit Robots 42 | . 16 26 Core Hits 13 | . 9 4 Critical Kills 1 | . . 1 Critical Parts Destroyed 7 | . . 7 Critical Strikes 8 | . . 8 Smash 8 | . . 8 Melee Attacks 58 | . . 58 Impact 58 | . . 58 Slashing . | . . . Piercing . | . . . Sneak Attacks 5 | . . 5 Combat Hostiles . | . . . Follow-up Attacks 5 | . . 5 Damage Inflicted 1653 | . 228 1425 Guns 228 | . 228 . Cannons . | . . . Explosions . | . . . Melee 1425 | . . 1425 Ramming . | . . . Kinetic . | . . . Thermal . | . . . Explosive . | . . . Electromagnetic 228 | . 228 . Impact 1425 | . . 1425 Slashing . | . . . Piercing . | . . . Highest Corruption 3 | . 3 . Average Corruption 2 | . 2 . Corruption Purged . | . . . Corruption Blocked . | . . . Effects 9 | . 9 . Message Errors 3 | . 3 . Energy Discharges 2 | . 2 . Parts Rejected 1 | . 1 . Data Loss (major) 1 | . 1 . Alerts 1 | . 1 . Weapon Failures 1 | . 1 . Overload Shots . | . . . Overflow Damage 741 | . . 741 Projectiles . | . . . Explosions . | . . . Melee 741 | . . 741 Knockbacks 9 | . . 9 Impact 8 | . . 8 Kinetic . | . . . Secondary 1 | . . 1 Self-Inflicted Damage . | . . . Shots . | . . . Rammed . | . . . Targets Rammed . | . . . Kicked . | . . . Crushed . | . . . Highest Temperature 129 | . 129 . Average Temperature 48 | . 48 . Received Heat Transfer 153 | . 66 87 Siege Activations . | . . . Robots Corrupted . | . . . Combat Hostiles . | . . . Parts Fried 13 | . 1 12 Impact Corruptions 25 | . . 25 Robots Melted . | . . . Combat Hostiles . | . . . Parts Melted . | . . . Heat Transferred . | . . . Parts Sabotaged . | . . . Parts Stolen . | . . . Parts Stripped . | . . . Power Chain Reactions . | . . . Alert | -11 -10 -9 ------- Run | Yrd Mat Mat Peak Influence 279 | . 121 279 Initial 20 | . . 20 Average 77 | . 32 138 Maximum Alert Level 1 | . . 1 Low Security (%) 88 | 100 100 73 Level 1 11 | . . 26 Level 2 . | . . . Level 3 . | . . . Level 4 . | . . . Level 5 . | . . . High Security . | . . . Max Security . | . . . Squads Dispatched 1 | . 1 . Investigation . | . . . Extermination . | . . . Reinforcement 1 | . 1 . Assault . | . . . Garrison . | . . . Intercept . | . . . Searches Triggered . | . . . Construction Impeded . | . . . Haulers Reinforced . | . . . Active Scanning Responses . | . . . Cargo Convoy Interrupts . | . . . Stealth | -11 -10 -9 --------- Run | Yrd Mat Mat Distress Signals 6 | . 1 5 Communications Jammed . | . . . Distress Signals . | . . . Times Spotted 40 | . 8 32 Peak Tracking Total 8 | . 4 8 Tactical Retreats 5 | . . 5 Traps | -11 -10 -9 ------- Run | Yrd Mat Mat Traps Triggered 5 | . 5 . Indirectly . | . . . Trap Hack Attempts . | . . . Triggered . | . . . Disarmed . | . . . Reprogrammed . | . . . Reused . | . . . Traps Extracted . | . . . Installed . | . . . Triggered . | . . . Machines | -11 -10 -9 ---------- Run | Yrd Mat Mat Machines Disabled . | . . . Max in Single Turn . | . . . Machines Repaired . | . . . Machines Dismantled . | . . . Machines Sabotaged . | . . . Overloaded Fab Kills . | . . . Hacking | -11 -10 -9 --------- Run | Yrd Mat Mat Machines Accessed 4 | . 2 2 Terminals 2 | . 1 1 Fabricators . | . . . Repair Stations . | . . . Recycling Units 2 | . 1 1 Scanalyzers . | . . . Garrison Access . | . . . Total Hacks 11 | . 4 7 Successful 5 | . 3 2 Failed 6 | . 1 5 Catastrophic . | . . . Database Lockouts . | . . . Manual . | . . . Terminals 9 | . 3 6 Fabricators . | . . . Repair Stations . | . . . Recycling Units 2 | . 1 1 Scanalyzers . | . . . Garrison Access . | . . . Terminal Hacks 3 | . 2 1 Record 1 | . 1 . Emergency Access Points 1 | . . 1 Dispatch Records 1 | . 1 . Fabricator Hacks . | . . . Repair Station Hacks . | . . . Recycling Unit Hacks 2 | . 1 1 Report Inventory 2 | . 1 1 Scanalyzer . | . . . Garrison Access Hacks . | . . . Unauthorized Hacks . | . . . Terminals . | . . . Fabricators . | . . . Repair Stations . | . . . Recycling Units . | . . . Scanalyzers . | . . . Garrison Access . | . . . Data Cores Recovered . | . . . Used . | . . . Hacking Detections 2 | . 1 1 Full Trace Events . | . . . Feedback Events . | . . . Feedback Blocked . | . . . Robot Schematics Acquired . | . . . Robots Built . | . . . Authchips . | . . . Time . | . . . Total Robot Build Rating . | . . . Part Schematics Acquired . | . . . Parts Built . | . . . Authchips . | . . . Time . | . . . Total Part Build Rating . | . . . Parts Repaired . | . . . Time . | . . . Parts Recycled . | . . . Recycled Matter . | . . . Retrieved Matter . | . . . Retrieved Components . | . . . Parts Scanalyzed . | . . . Part Schematics Acquired . | . . . Parts Damaged . | . . . Bothacking | -11 -10 -9 ------------ Run | Yrd Mat Mat Used RIF Installer . | . . . Robots Hacked . | . . . Non-combat . | . . . Combat . | . . . Robot Hacks Applied . | . . . Relay Couplers Released . | . . . Fabnet Peak Effective % . | . . . Robots Rewired . | . . . Allies Hacked . | . . . Hacks Repelled . | . . . Allies | -11 -10 -9 -------- Run | Yrd Mat Mat Total Allies . | . . . Largest Group . | . . . Highest-Rated Group . | . . . Highest-Rated Ally . | . . . Total Orders . | . . . Ally Attacks . | . . . Total Damage . | . . . Kills . | . . . Allies Corrupted . | . . . Allies Melted . | . . . Intel | -11 -10 -9 ------- Run | Yrd Mat Mat Robot Analysis Total . | . . . Derelict Logs Recovered . | . . . Drone Launches . | . . . Drone Recoveries . | . . . Exploration | -11 -10 -9 ------------- Run | Yrd Mat Mat Turns Passed 1161 | 77 570 514 Spaces Moved 585 | 51 317 217 Core 29 | 17 . 12 Treads 556 | 34 317 205 Legs . | . . . Wheels . | . . . Hover . | . . . Flight . | . . . Fastest Speed 50 | 50 160 160 Average Speed 158 | 123 160 164 Slowest Speed 300 | 160 160 300 Overloaded Moves . | . . . Propulsion Burnouts . | . . . Robots Hopped . | . . . Cave-ins Triggered . | . . . Exploration Rate (%) 25 | 4 48 25 Regions Visited 2 Branch Regions . Pre-discovered Areas . | . . . Known Exits Taken . | . . . Unknown Exits Taken 2 | 1 1 . Scrap Searched . | . . . Spaces Dug . | . . . Terrain Destroyed . | . . . Melee . | . . . Projectile . | . . . AOE . | . . . Terrain Rammed . | . . . Walls Destroyed . | . . . Machines Disabled . | . . . Actions | -11 -10 -9 --------- Run | Yrd Mat Mat Total 715 | 65 350 300 Wait 16 | . 7 9 Move 583 | 50 316 217 Hop . | . . . Pick Up 27 | 9 8 10 Fast Attach . | . . . Attach 17 | 6 4 7 Detach . | . . . Swap . | . . . Drop 7 | . . 7 Fire 15 | . 15 . Melee 50 | . . 50 Ram . | . . . Kick . | . . . Crush . | . . . Escape Stasis . | . . . Rewire . | . . . Trap . | . . . Miscellaneous . | . . . Route ------- -11/Scrapyard -10/Materials (discovered 2 exits: *Mat / [*Min]) -9/Materials (discovered 1 exit: [*Min]) History --------- Turn | Location | Event 3 | -11/Scrapyard | Discovered new exit (range 15) 78 | -11/Scrapyard | Entered Materials 307 | -10/Materials | Build established: Mutant 342 | -10/Materials | Discovered new exit (range 12) 516 | -10/Materials | Discovered new exit (range 11) 648 | -10/Materials | Entered another Materials area 648 | -9/Materials | Evolved 2 slots: Propulsion x1, Utility x1 907 | -9/Materials | Discovered new exit (range 15) 1109 | -9/Materials | Core integrity fell below 50% 1135 | -9/Materials | Lost 3 parts (2n1u) 1156 | -9/Materials | Core integrity fell below 20% 1162 | -9/Materials | Destroyed by G-34 Mercenary with Small Laser Last Messages --------------- L-31 Rogue unfolds itself. G-34 Mercenary unfolds itself. S-10 Pest destroyed. K-01 Serf collects debris. R-06 Scavenger collects Lgt. Assault Rifle. K-01 Serf collects debris. Ion Engine destroyed. K-01 Serf collects debris. Hvy. Flail destroyed. K-01 Serf collects debris. K-01 Serf cleans the Machine. K-01 Serf collects debris. R-06 Scavenger collects Lgt. Ion Engine. Acquired 10 matter. K-01 Serf collects debris. K-01 Serf cleans the Machine. M-13 Machinist repairs L-31 Rogue. K-01 Serf collects debris. R-06 Scavenger collects Sml. Matter Pod. K-01 Serf collects debris. Map ----- +----------------------------------------------------+ | ????????????????????????????????????????????# | | ????????????????????????????????????????????# | | ????????????????????????????????????????????# | | ????????????????????????????????????????????# ? | | ????????????????????????????????????????????# ?? | | ????????????????????????????????????????????# ??? | | ????????????????????????????????????????????# ???? | | ??????????????????????????????????????????? ????? | | ??????????????????????????????????????????? ?????? | | ??????????????????????????????????????? ???????? | | ??????????????????????????????????????# #??????? | | ?????????????# ?????????????????????# #??????? | | ?????????????# ?????????????????????# ######## | | ?????????????# ?????????????????????# # | | ?????????????# ??????????????#+###### # """ | | ??????? "???# ??????????????# ## # """ | | ??????? ""??# ??????????????# ## # """ | | ???????? ?# ??????????????# ## # | | ????????? # #?????????????# ## # | | ?????????? # #?????######### ## # | | ???????????? + +?????#"""""""# ## # "T" | | ???###???????# #?????#" |"| "# % ## # | | ???# ]##### #######" "##+##### #+###### | | ???# ag k t %% | | ?? + k s < | | ???# uk%%Y m %l @ % rw | | ?????????#######/## ## ##+#########+###### | | ?????????# %%%# ########### #? ???# | | ?????????# " # #?????????# # ?# | | ?????????# # ????????# # [ ## | | ?????????# # #??????# """ # ## | | ?????????# # #??????# """ # ]]* ## | | ?????????# # #??????# """ # ]] ## | | ?????????# # ?????######## ]* =## | | ?????????# # ???????????+ ## | | ?????????# # ##??????????# ## | | ?????????#+#################???????????########### | | ?????????%"??????????????????????????????????????# | | ???????? "???????????????????????????????????????# | | ???????? ????????????????????????????????????????# | | ?????????????????????????????????????????????????# | | ?????????????????????????????????????????????????? | | ?????????????????????????????????????????????????? | | ?????????????????????????????????????????????????? | | ?????????????????????????????????????????????????? | | ?????????????????????????????????????????????????? | | ?????????????????????????????????????????????????? | | ?????????????????????????????????????????????????? | | ?????????????????????????????????????????????????? | | ?????????????????????????????????????????????????? | +----------------------------------------------------+ Best States ------------- Heat Dissipation 28 Energy Generation 10 Energy Capacity 250 Matter Stores 300 Matter Capacity 300 Sight Range 16 Terrain Scan Density 10 Armor Coverage 150 Evasion (%) 50 Recoil Reduction 3 Item Schematics ----------------- None Robot Schematics ------------------ None Fabricated ------------ Nothing Alien Tech Used ----------------- None Achievements -------------- None Challenges ------------ None Game ------ Seed HardcellHugeScythe Manual? 0 Play Time 00:11:04 Cumulative 7.1 hours Start 2024.03.31 @ 13:54:28 End 2024.03.31 @ 22:12:07 Sessions 2 Manual Loads 0 Difficulty Rogue Special Mode None Game No. 17 Rogue 17 Adventurer 0 Explorer 0 Win Type - Total 0 Types 0/0/0/0/0/0/0/0/0 Lore% 7 Gallery% 11 Achievement% 12 Wizard Run 0 Options --------- Layout 1 ASCII 0 Keyboard 0 Movement Numpad Keybinds 0 Fullscreen 1 Font 32/SmallcapsGlow Map View 50x35 Zoom Use 0% Tactical HUD 0 Map Filters NONE Filters NONE Steam 1 RUN: 04ed93e1-054d-437c-bae4-8f6f8db244af